[Event "28th Hit Open-A 2024"]
[Site "Nova Gorica"]
[Date "2024.01.29"]
[Round "5.1"]
[White "Ceres, Dragos"]
[Black "Csonka, Balazs"]
[Result "0-1"]
[ECO "C54"]
[WhiteElo "2438"]
[BlackElo "2479"]
[Annotator "TA"]
[PlyCount "54"]
[EventDate "2024.01.22"]
[EventType "swiss"]
[EventCountry "SLO"]
[SourceTitle "playchess.com"]
[Source "ChessBase"]
[SourceQuality "1"]
[TimeControl "5400+30"]

{[%evp 14,54,8,11,21,15,15,20,25,0,0,0,0,0,0,15,16,-13,23,-30,15,7,18,0,-11,-12,0,-175,-193,-318,-295,-314,-302,-414,-424,-410,-404,-460,-293,-284,-300,-1148,-1145]} 1. e4 {[%emt 0:13:01]} e5 {[%emt 0:00:09]} 2. Nf3 {[%emt 0:00:26]} Nc6 {[%emt 0:00:07]} 3. Bc4 {[%emt 0:00:05]} Bc5 {[%emt 0:00:07]} 4. O-O {[%emt 0:00:09]} Nf6 {[%emt 0:00:05]} 5. d3 {[%emt 0:00:05]} d6 {[%emt 0:00:25]} 6. c3 {[%emt 0:00:07]} O-O {[%emt 0:00:08]} 7. h3 {[%emt 0:00:03]} h6 {[%emt 0:00:47]} 8. Re1 {[%emt 0:00:07]} Bb6 {[%emt 0:00:15]} 9. Nbd2 {[%emt 0:02:20]} Ne7 {[%emt 0:00:12]} 10. Bb3 {[%emt 0:00:54]} Ng6 {[%emt 0:02:35] The position is equal.} 11. d4 {[%emt 0:01:13]} c6 {[%emt 0:10:28]} 12. Nf1 {[%emt 0:03:44]} d5 {[%emt 0:03:55]} 13. exd5 {[%emt 0:01:44]} e4 {[%emt 0:03:23]} 14. Ne5 {[%emt 0:00:18]} cxd5 {[%emt 0:00:27]} 15. Ng3 {[%emt 0:06:08]} Be6 {[%emt 0:23:11]} 16. f4 {[%emt 0:04:54]} ({Better is} 16. Nxe4 Nxe4 17. Nxg6 fxg6 18. Rxe4 dxe4 19. Bxe6+ Kh7 20. Qe1) 16... Nxe5 {[%emt 0:08:21]} 17. fxe5 {[%emt 0:00:05]} Nd7 {[%emt 0:00:20][%cal Bf6d7,Bd7e5,Be5d3][%mdl 32]} (17... Nh7 {simplifies} 18. Qe2 Kh8 19. Rf1 f6) 18. Qh5 {[%emt 0:19:16] Black must now prevent Nf5.} (18. Kh1 {simplifies} f5 19. Rf1 Bc7 20. Qh5) 18... Nxe5 $1 {[%emt 0:02:20] And now ...Nd3 would win.} 19. Bxh6 {[%emt 0:06:46]} (19. Qxe5 $2 Bc7 20. Qh5 Bxg3 $19) 19... Nd3 {[%emt 0:20:03][%cal Ob6c7] ...Bc7! is the strong threat.} 20. Nxe4 $2 {[%emt 0:12:51]} Nxe1 $19 {[%emt 0:11:09]} (20... dxe4 21. Rxe4 Qf6 (21... gxh6 $2 22. Bxe6 Qf6 23. Rf1 $18) 22. Bxg7 Kxg7 (22... Qxg7 23. Bxe6 $16) 23. Bxe6 Qf2+ 24. Kh1 fxe6 25. Rg4+ Kf6 26. Qg5+ Kf7 27. Qg7+ Ke8 28. Qxb7 $11) (20... gxh6 $2 21. Qxh6 dxe4 22. Rxe4 $18) 21. Rxe1 {[%emt 0:01:06]} (21. Bg5 $142 Nf3+ 22. gxf3) 21... dxe4 {[%emt 0:04:37]} (21... gxh6 22. Bxd5 Bxd4+ (22... Bxd5 23. Qxh6 Bxd4+ 24. cxd4 $11) 23. cxd4 Bxd5 (23... Qxd5 $2 24. Nf6+ Kg7 25. Nxd5 $18) 24. Qxh6 $11) 22. Rxe4 {[%emt 0:00:34] [#]} (22. Bxe6 fxe6 23. Rxe4 Rf5 (23... gxh6 24. Qg6+ Kh8 25. Qxh6+ Kg8 26. Rg4+)) 22... Qf6 {[%emt 0:02:16]} ({Stronger than} 22... gxh6 23. Qxh6 Re8 (23... Bf5 24. Rf4 $14) 24. Bc2 $11) (22... Bxb3 $2 23. Bxg7 f5 (23... Kxg7 24. Rg4+) 24. Qg6 $18) 23. Bg5 {[%emt 0:01:07]} Qf5 {[%emt 0:01:45]} 24. Rh4 {[%emt 0:01:28][%csl Gh4][%cal Rh5h8] [#]} f6 $1 {[%emt 0:01:16]} 25. Rf4 {[%emt 0:08:28]} Qb1+ {[%emt 0:00:42]} (25... Qxg5 $2 {loses.} 26. Bxe6+ $18) 26. Rf1 {[%emt 0:00:04]} Qe4 {[%emt 0:00:39]} ({Worse is} 26... Qxb2 27. Bxe6+) 27. Rf4 $2 {[%emt 0:00:25]} (27. Qf3 Qxf3 28. Bxe6+ Kh8 29. gxf3) 27... Qe3+ {[%emt 0:00:24] Weighted Error Value: White=0.71/Black=0.21 (precise) .  Loses game:     	White=1     	---        Mistake:       	White=3     	---        Inaccurate:     	White=3     	Black=3      OK:         	White=3     	Black=5      Best:        	White=1     	Black=4      Strong:       	---       	Black=2} 0-1

[Event "28th Hit Open-A 2024"]
[Site "Nova Gorica"]
[Date "2024.01.29"]
[Round "5.2"]
[White "Berkes, Ferenc"]
[Black "Fercec, Nenad"]
[Result "1-0"]
[ECO "E32"]
[WhiteElo "2613"]
[BlackElo "2410"]
[Annotator "RC"]
[PlyCount "47"]
[EventDate "2024.01.22"]
[EventType "swiss"]
[EventCountry "SLO"]
[SourceTitle "playchess.com"]
[Source "ChessBase"]
[SourceQuality "1"]
[TimeControl "5400+30"]

1. d4 {[%emt 0:00:05]} Nf6 {[%emt 0:00:08]} 2. c4 {[%emt 0:00:06]} b6 {[%emt 0:00:11]} 3. Nc3 {[%emt 0:00:18]} Bb7 {[%emt 0:00:07]} 4. Qc2 {[%emt 0:00:12]} e6 {[%emt 0:07:25]} 5. e4 {[%emt 0:00:25]} Bb4 {[%emt 0:00:07]} 6. Bd3 {[%emt 0:00:17]} Bxc3+ {[%emt 0:00:32]} 7. bxc3 {[%emt 0:00:08]} d6 {[%emt 0:00:09]} 8. Ne2 {[%emt 0:01:30]} e5 {[%emt 0:00:26]} 9. O-O {[%emt 0:01:32]} c5 {[%emt 0:07:22]} 10. f4 {[%emt 0:01:34]} Nfd7 {[%emt 0:05:37]} 11. Ng3 {[%emt 0:02:20]} g6 {[%emt 0:02:51]} 12. fxe5 {[%emt 0:31:31]} dxe5 {[%emt 0:02:08]} 13. Bh6 {[%emt 0:00:08]} Qe7 {[%emt 0:09:27]} 14. d5 {[%emt 0:02:58]} a5 {[%emt 0:18:04]} 15. Be2 {[%emt 0:12:44]} Qh4 {[%emt 0:22:00]} 16. Qd2 {[%emt 0:01:02]} f6 {[%emt 0:00:06]} 17. Qe3 {[%emt 0:04:40]} Rg8 {[%emt 0:03:23]} 18. Rf3 {[%emt 0:03:44]} Bc8 {[%emt 0:00:29]} 19. Raf1 {[%emt 0:00:16]} Kd8 {[%emt 0:00:37]} 20. Nh1 {[%emt 0:02:01]} g5 {[%emt 0:03:13]} 21. Rh3 {[%emt 0:00:09]} Qf4 {[%emt 0:00:12]} 22. Qd3 {[%emt 0:00:47]} Rg6 {[%emt 0:01:00]} 23. Ng3 {[%emt 0:04:04]} g4 {[%emt 0:03:22]} 24. Bxf4 {[%emt 0:05:29]} 1-0

[Event "28th Hit Open-A 2024"]
[Site "Nova Gorica"]
[Date "2024.01.29"]
[Round "5.3"]
[White "Basso, Pier Luigi"]
[Black "Goroshkov, Maksym"]
[Result "1-0"]
[ECO "D38"]
[WhiteElo "2482"]
[BlackElo "2338"]
[Annotator "TA"]
[PlyCount "131"]
[EventDate "2024.01.22"]
[EventType "swiss"]
[EventCountry "SLO"]
[SourceTitle "playchess.com"]
[Source "ChessBase"]
[SourceQuality "1"]
[TimeControl "5400+30"]

{[%evp 42,131,79,75,62,45,80,15,73,66,97,101,101,113,113,116,154,167,166,161,185,126,164,149,188,186,222,222,296,277,254,182,177,177,177,199,181,0,0,0,0,0,0,0,0,4,6,6,10,0,34,22,36,0,0,0,5019,8,8,0,8,8,8,8,8,8,29968,29969,29947,16,29971,-29986,29969,29970,29971,29972,29972,29973,29973,29974,29978,29979,29979,29980,29980,29981,29987,29988,29989,29990,29992,29993]} 1. d4 {[%emt 0:13:05]} d5 {[%emt 0:02:21]} 2. c4 {[%emt 0:00:08]} e6 {[%emt 0:00:23]} 3. Nc3 {[%emt 0:00:07]} Nf6 {[%emt 0:00:06]} 4. Nf3 {[%emt 0:00:04]} Bb4 {[%emt 0:03:58]} 5. cxd5 {[%emt 0:02:51]} exd5 {[%emt 0:00:26]} 6. Bg5 {[%emt 0:00:07]} h6 {[%emt 0:02:14]} 7. Bh4 {[%emt 0:00:06]} O-O {[%emt 0:04:20]} 8. e3 {[%emt 0:00:06]} c6 {[%emt 0:04:55]} 9. Bd3 {[%emt 0:03:50]} Qd6 {[%emt 0:00:50]} 10. Qc2 {[%emt 0:01:19]} Re8 {[%emt 0:01:51]} 11. O-O {[%emt 0:00:49]} Bxc3 {[%emt 0:00:47]} 12. bxc3 {[%emt 0:00:10]} Nbd7 {[%emt 0:08:40]} 13. c4 {[%emt 0:02:11]} b6 {[%emt 0:15:12]} 14. Bg3 {[%emt 0:01:57]} Qa3 {[%emt 0:00:56]} 15. cxd5 {[%emt 0:04:42]} cxd5 {[%emt 0:00:10]} 16. Qb3 {[%emt 0:04:13]} Qxb3 {[%emt 0:04:41]} 17. axb3 {[%emt 0:00:06]} a5 {[%emt 0:00:53]} 18. b4 {[%emt 0:02:18]} Ba6 {[%emt 0:00:30]} 19. b5 {[%emt 0:00:16]} Bb7 {[%emt 0:00:06]} 20. Bf5 {[%emt 0:00:45]} g6 {[%emt 0:02:49]} 21. Bh3 {[%emt 0:00:07]} Nf8 {[%emt 0:01:37]} 22. Bc7 {[%emt 0:03:30]} N6d7 {[%emt 0:00:07]} 23. Rfc1 {[%emt 0:04:10]} Ne6 {[%emt 0:01:03]} 24. Rc3 {[%emt 0:03:30]} (24. Bxe6 $16 Rxe6 25. Ne5 Nxe5 26. dxe5) 24... Rac8 {[%emt 0:12:51]} (24... Rec8 $11) 25. Rac1 $16 {[%emt 0:01:26]} a4 {[%emt 0:01:19]} 26. g3 {[%emt 0:02:19]} Ra8 {[%emt 0:06:32]} 27. Bd6 {[%emt 0:01:06]} Nf6 {[%emt 0:02:05]} 28. Ba3 {[%emt 0:06:02]} Bc8 {[%emt 0:03:14]} 29. Bf1 {[%emt 0:02:43]} Bb7 {[%emt 0:00:57]} 30. Ne5 {[%emt 0:01:34]} Rac8 {[%emt 0:05:53]} 31. Nc6 {[%emt 0:04:02]} ({White should try} 31. Rxc8 $18 Rxc8 32. Ra1) 31... Kg7 {[%emt 0:00:22]} 32. f3 {[%emt 0:00:16]} Nd7 {[%emt 0:02:44]} 33. Kf2 {[%emt 0:01:31]} f5 {[%emt 0:00:21]} 34. Bd6 {[%emt 0:00:57]} Kh7 {[%emt 0:01:38]} 35. h4 {[%emt 0:03:05]} h5 {[%emt 0:03:04]} 36. Ra3 {[%emt 0:01:06]} Nd8 {[%emt 0:01:34]} 37. Rxa4 {[%emt 0:01:44]} Nxc6 {[%emt 0:00:52]} 38. bxc6 {[%emt 0:00:07]} Rxc6 {[%emt 0:00:06] [#]} 39. Ra7 $2 {[%emt 0:03:23]} ({White should play} 39. Rxc6 $1 $18 Bxc6 40. Ra7) 39... Rxc1 $11 {[%emt 0:00:53]} 40. Rxb7 {[%emt 0:00:04]} Ra8 {[%emt 0:00:27]} 41. Rxd7+ {[%emt 0:00:08]} Kg8 {[%emt 0:00:14]} 42. g4 {[%emt 0:06:35]} Ra2+ {[%emt 0:00:08]} 43. Kg3 {[%emt 0:00:20]} Rxf1 {[%emt 0:00:09]} 44. gxh5 {[%emt 0:00:03]} gxh5 {[%emt 0:00:09]} 45. Kf4 {[%emt 0:00:07]} Raf2 {[%emt 0:00:18]} 46. Kg5 {[%emt 0:01:20]} Rxf3 {[%emt 0:00:31]} 47. Kf6 {[%emt 0:00:13]} f4 {[%emt 0:00:54]} 48. e4 {[%emt 0:02:26]} Re3 $2 {[%emt 0:02:24][%mdl 8192] [#]} (48... dxe4 49. Rd8+ Kh7 50. Be5 (50. Rd7+ Kh8 51. Be5 Rg1 52. Rd8+ Kh7 53. Kf7 Rg7+ 54. Bxg7 Rh3 55. Rh8#) 50... Rc1 51. Kf5) (48... Rg1 $11) 49. Be5 $2 {[%emt 0:03:51]} (49. exd5 f3 50. Rd8+ (50. Rg7+ Kh8 $11) 50... Kh7 51. Rd7+ Kh8 (51... Kg8 52. Rg7+ Kh8 53. Kf7 $11) 52. Rd8+ Kh7 53. Rd7+ Kh8 (53... Kg8 54. Rd8+ Kh7 $11) 54. Rd8+ Kh7 $11) ({Only move:} 49. Rg7+ $1 $18 Kh8 50. Rg5) 49... Rxe4 $11 {[%emt 0:01:14]} (49... dxe4 50. Rd8+ Kh7 51. Kf7 Kh6 52. Rh8#) 50. Rd8+ {[%emt 0:00:25]} Kh7 {[%emt 0:00:01]} 51. Kf7 {[%emt 0:01:42]} (51. Kf5 Rxe5+ 52. Kxe5 (52. dxe5 f3 $11) 52... f3) 51... Rxe5 $1 {[%emt 0:00:03]} 52. dxe5 {[%emt 0:00:06]} Rg1 {[%emt 0:01:23]} 53. e6 {[%emt 0:02:26]} Rg7+ $2 {[%emt 0:00:39][%mdl 8192]} (53... f3 $11 54. Rxd5 Rg7+ 55. Kf6 Rg6+ 56. Ke7 Rg4) 54. Kf6 {[%emt 0:00:13]} f3 {[%emt 0:00:19]} 55. Rxd5 $2 {[%emt 0:04:01]} (55. e7 {mates} f2 56. Rh8+ (56. e8=R f1=Q+ 57. Ke5 Qe1+ 58. Kf6 Rg6+ 59. Kf5 Qb1+ 60. Kf4 Qb4+ 61. Kf3 Qc3+ 62. Re3 Rf6+ 63. Ke2 Qc2+ 64. Ke1 Qc1+ 65. Ke2 Qf1+ 66. Kd2 Rf2+) 56... Kxh8 57. e8=Q+ (57. e8=B {leads to mate.} f1=Q+ 58. Ke6 Qf3 59. Bc6 Rg6+ 60. Ke7 Qf6+ 61. Kd7 Rg7+ 62. Kc8 Qxc6+ 63. Kd8 Qd7#) 57... Kh7 58. Qxh5+ Kg8 59. Qxd5+ Kh8 60. Qf5) 55... f2 $2 {[%emt 0:00:12][%mdl 8192]} (55... Rg6+ $11 56. Ke7 Rg4) 56. Rxh5+ {[%emt 0:07:27]} Kg8 {[%emt 0:00:05]} 57. Rf5 {[%emt 0:00:03]} Kf8 {[%emt 0:00:17]} 58. Rxf2 {[%emt 0:00:05]} Rg1 {[%emt 0:00:14]} 59. h5 {[%emt 0:00:07]} Rh1 {[%emt 0:00:18]} 60. Rf5 {[%emt 0:00:50]} Rh2 {[%emt 0:00:22]} 61. h6 {[%emt 0:00:48]} Ke8 {[%emt 0:00:50]} 62. Kg6 {[%emt 0:00:09]} Ke7 {[%emt 0:00:03]} 63. h7 {[%emt 0:00:12]} Kxe6 {[%emt 0:00:06]} 64. Rh5 {[%emt 0:00:11]} Rg2+ {[%emt 0:00:03]} 65. Kh6 {[%emt 0:00:47]} Kf7 {[%emt 0:00:04]} 66. h8=Q {[%emt 0:00:23]} ({Inferior is} 66. h8=R Rg6+ 67. Kh7 Rg7+ 68. Kh6 Rg6+ 69. Kh7 Rg7+ 70. Kh6 Rg6+ $11) 1-0

[Event "28th Hit Open-A 2024"]
[Site "Nova Gorica"]
[Date "2024.01.29"]
[Round "5.4"]
[White "Drazic, Sinisa"]
[Black "Beliavsky, Alexander G"]
[Result "1/2-1/2"]
[ECO "D05"]
[WhiteElo "2270"]
[BlackElo "2475"]
[Annotator "TA"]
[PlyCount "54"]
[EventDate "2024.01.22"]
[EventType "swiss"]
[EventCountry "SLO"]
[SourceTitle "playchess.com"]
[Source "ChessBase"]
[SourceQuality "1"]
[TimeControl "5400+30"]

{[%evp 17,54,-11,18,0,-16,-42,-46,-54,0,0,-3,-9,-17,-11,0,0,0,0,0,0,0,0,0,0,0,0,12,0,0,0,0,0,0,-4,0,-7,11,0,14]} 1. d4 {[%emt 0:00:05]} Nf6 {[%emt 0:00:08]} 2. Nf3 {[%emt 0:00:06]} e6 {[%emt 0:01:38]} 3. e3 {[%emt 0:00:40]} c5 {[%emt 0:01:04]} 4. Nbd2 {[%emt 0:00:29]} Nc6 {[%emt 0:03:53]} 5. Bd3 {[%emt 0:02:55]} d5 {[%emt 0:00:36]} 6. c3 {[%emt 0:00:02]} Bd6 {[%emt 0:00:46]} 7. O-O {[%emt 0:01:59]} O-O {[%emt 0:00:53]} 8. dxc5 {[%emt 0:00:12]} Bxc5 {[%emt 0:01:05]} 9. e4 {[%emt 0:00:03]} h6 {[%emt 0:04:32]} 10. Qe2 {[%emt 0:02:01]} Bb6 {[%emt 0:05:17]} 11. e5 {[%emt 0:15:26]} Nd7 {[%emt 0:00:36]} 12. Nb3 {[%emt 0:00:12] Black is slightly better.} f6 {[%emt 0:02:17]} ({Black should play} 12... Bc7 $15) 13. exf6 $11 {[%emt 0:00:25] The position is equal.} Qxf6 {[%emt 0:01:32] Black wants to play ...e5.} 14. c4 {[%emt 0:04:15]} Nde5 {[%emt 0:14:56]} 15. Nxe5 {[%emt 0:01:54]} Qxe5 {[%emt 0:02:39]} 16. Be3 {[%emt 0:00:25]} d4 {[%emt 0:09:50]} 17. Bd2 {[%emt 0:00:30]} Qxe2 {[%emt 0:09:46]} 18. Bxe2 {[%emt 0:03:30]} e5 {[%emt 0:03:29]} 19. c5 {[%emt 0:03:49]} Bc7 {[%emt 0:00:54]} 20. Bc4+ {[%emt 0:00:02]} Kh7 {[%emt 0:03:33][%cal Bg8h7,Bh7g6,Bg6f5,Bf5e6][%mdl 32]} 21. f3 {[%emt 0:02:17]} Bf5 {[%emt 0:01:21]} 22. Bd5 {[%emt 0:00:12]} a5 {[%emt 0:10:29]} 23. a4 {[%emt 0:04:05]} Rfd8 {[%emt 0:02:50]} 24. Be4 {[%emt 0:00:20]} Kg6 {[%emt 0:02:04]} 25. Rfe1 {[%emt 0:09:14]} Bxe4 {[%emt 0:00:30]} 26. Rxe4 {[%emt 0:04:15]} Kf5 {[%emt 0:00:17]} 27. Kf2 {[%emt 0:00:57]} Ke6 {[%emt 0:00:58] Weighted Error Value: White=0.05 (flawless) /Black=0.08 (flawless) .  Mistake:       	---       	Black=1      Inaccurate:     	White=1     	---        OK:         	White=9     	Black=9      Best:        	White=1     	---} 1/2-1/2

[Event "28th Hit Open-A 2024"]
[Site "Nova Gorica"]
[Date "2024.01.29"]
[Round "5.5"]
[White "Ashwath, R.."]
[Black "Pirs, Matjaz"]
[Result "1-0"]
[ECO "D28"]
[WhiteElo "2284"]
[BlackElo "1965"]
[Annotator "TA"]
[PlyCount "63"]
[EventDate "2024.01.22"]
[EventType "swiss"]
[EventCountry "SLO"]
[SourceTitle "playchess.com"]
[Source "ChessBase"]
[SourceQuality "1"]
[TimeControl "5400+30"]

{[%evp 17,63,50,68,14,25,0,0,2,0,-4,0,0,0,0,90,92,112,114,111,104,135,70,166,168,175,171,170,177,158,158,167,153,147,150,219,189,208,190,185,185,496,395,413,395,1077,1060,2254,2242]} 1. d4 {[%emt 0:07:33]} d5 {[%emt 0:00:45]} 2. c4 {[%emt 0:00:14]} dxc4 {[%emt 0:01:25]} 3. Nf3 {[%emt 0:08:14]} Nf6 {[%emt 0:04:09]} 4. e3 {[%emt 0:00:46]} e6 {[%emt 0:01:33]} 5. Bxc4 {[%emt 0:00:09]} c5 {[%emt 0:01:48]} 6. O-O {[%emt 0:00:19]} Be7 {[%emt 0:01:07]} 7. Qe2 {[%emt 0:03:06]} Nc6 {[%emt 0:01:53]} 8. Rd1 {[%emt 0:01:13]} Qc7 {[%emt 0:01:01]} 9. Nc3 {[%emt 0:01:13]} a6 {[%emt 0:00:44]} 10. h3 {[%emt 0:06:39]} (10. dxc5 $14 Bxc5 11. b3) 10... b5 {[%emt 0:07:11]} 11. Bb3 {[%emt 0:04:53]} (11. d5 $5) 11... Bb7 {[%emt 0:02:17]} 12. dxc5 {[%emt 0:04:10] The position is equal.} Bxc5 {[%emt 0:07:57]} 13. e4 {[%emt 0:00:30]} Ne5 {[%emt 0:22:42]} 14. Bf4 {[%emt 0:15:04][%cal Bc1f4,Bf4e5,Be5d4][%mdl 32]} Nxf3+ {[%emt 0:05:14]} 15. Qxf3 {[%emt 0:00:05]} Qb6 {[%emt 0:00:30]} (15... Qe7 $11 {keeps the balance.}) 16. Be5 $16 {[%emt 0:06:30]} Be7 {[%emt 0:00:50]} 17. Bd4 {[%emt 0:01:33] White has more active pieces.} Qc7 {[%emt 0:13:32]} 18. Rac1 $1 {[%emt 0:02:47]} Rc8 {[%emt 0:01:08]} 19. g4 {[%emt 0:15:33]} ({Of course not} 19. Ne2 $6 Qb8 $14) (19. Nd5 $1 $16 {[%cal Rd5c7]} Qxc1 20. Nxe7 (20. Bxf6 Bxd5 21. Bxe7 Bxb3 $11) (20. Nxf6+ $2 Bxf6 21. Bxf6 Qh6 $17) 20... Bxe4 21. Nxc8 Qxc8 22. Qe3) 19... O-O {[%emt 0:03:48] [#]} ({Black should try} 19... h6 $1 $14) 20. Nd5 $1 $18 {[%emt 0:02:05][%mdl 512]} Qd8 {[%emt 0:04:25] [#]} 21. Rxc8 $1 {[%emt 0:04:54]} Bxc8 {[%emt 0:01:30] [#]} 22. Nxf6+ $40 {[%emt 0:00:25][%mdl 128] White wants a kill.} Bxf6 {[%emt 0:06:16]} 23. Bc5 {[%emt 0:00:14][%csl LRd8,LRf8]} Qc7 {[%emt 0:00:22]} 24. Bxf8 {[%emt 0:00:32]} Kxf8 {[%emt 0:00:04]} 25. Qd3 {[%emt 0:02:02]} Be7 {[%emt 0:01:31]} (25... Ke8 $16 26. Rd2 Bb7) 26. Qc3 {[%emt 0:01:34]} Qb8 {[%emt 0:03:25]} 27. Rc1 {[%emt 0:02:18]} Bb7 {[%emt 0:00:06]} 28. Qc7 {[%emt 0:00:21]} Qa8 {[%emt 0:00:04]} (28... Bd6 {is more resistant.} 29. Qxb8+ Bxb8) 29. Qd7 {[%emt 0:01:52]} Bd8 {[%emt 0:00:46]} 30. a4 {[%emt 0:00:32]} g6 $2 {[%emt 0:01:34]} (30... Qb8 31. Rc3 (31. axb5 Bb6 $18) 31... h6 32. axb5 axb5) 31. Rc3 {[%emt 0:02:47][%cal Ob3e6] Strongly threatening Bxe6!} bxa4 {[%emt 0:04:02] [#]} 32. Bxe6 $1 {[%emt 0:01:21][%mdl 512] Weighted Error Value: White=0.12 (very precise) /Black=0.50.  Mistake:       	White=1     	Black=5      Inaccurate:     	---       	Black=1      OK:         	White=7     	Black=6      Best:        	White=3     	Black=1      Strong:       	White=2     	---        Brilliant:      	White=1     	---} 1-0

[Event "28th Hit Open-A 2024"]
[Site "Nova Gorica"]
[Date "2024.01.29"]
[Round "5.6"]
[White "Budai, Leonardo"]
[Black "Plaskan, Jure"]
[Result "0-1"]
[ECO "B42"]
[WhiteElo "1847"]
[BlackElo "2262"]
[Annotator "TA"]
[PlyCount "50"]
[EventDate "2024.01.22"]
[EventType "swiss"]
[EventCountry "SLO"]
[SourceTitle "playchess.com"]
[Source "ChessBase"]
[SourceQuality "1"]
[TimeControl "5400+30"]

{[%evp 11,50,26,52,20,23,10,18,18,32,0,0,0,0,0,15,0,34,-47,-47,-66,-59,-54,-67,-102,-95,-255,-227,-244,-233,-291,-306,-479,-483,-478,-470,-798,-805,-953,-959,-960,-927]} 1. e4 {[%emt 0:00:50]} c5 {[%emt 0:00:05]} 2. Nf3 {[%emt 0:00:39]} e6 {[%emt 0:00:07]} 3. d4 {[%emt 0:00:14]} cxd4 {[%emt 0:00:05]} 4. Nxd4 {[%emt 0:00:16]} a6 {[%emt 0:00:05]} 5. Bd3 {[%emt 0:01:39]} Bc5 {[%emt 0:00:06]} 6. Nb3 {[%emt 0:08:12]} Be7 {[%emt 0:01:02]} 7. Qe2 {[%emt 0:02:29]} Nc6 {[%emt 0:04:47]} 8. c4 {[%emt 0:10:34]} d6 {[%emt 0:07:45]} 9. Nc3 {[%emt 0:01:28] The position is equal.} Nf6 {[%emt 0:00:05]} 10. Be3 {[%emt 0:01:43]} Ne5 {[%emt 0:00:39]} 11. f4 {[%emt 0:03:30]} Nxd3+ {[%emt 0:00:15]} 12. Qxd3 {[%emt 0:00:13]} Qc7 {[%emt 0:00:44]} 13. O-O {[%emt 0:04:03]} Bd7 {[%emt 0:04:03][%cal Ob7b5]} 14. Nd4 {[%emt 0:12:55]} (14. a4 $14) 14... Rc8 $1 $15 {[%emt 0:01:09][%cal Of6g4]} 15. b3 {[%emt 0:24:14] [#]} b5 $1 {[%emt 0:02:06][%cal Rb5c4]} 16. Rac1 {[%emt 0:01:02]} bxc4 {[%emt 0:00:08]} 17. Qe2 {[%emt 0:00:58]} cxb3 {[%emt 0:28:43]} 18. Qxa6 $2 {[%emt 0:12:48] Now White is beyond hope.} (18. Nd5 $17 Qb7 19. Rxc8+ Bxc8 20. Nxe7 Qxe7 (20... Kxe7 21. e5 $14) 21. e5) 18... b2 $19 {[%emt 0:04:10]} 19. Rc2 {[%emt 0:00:13][%cal Of1b1]} Qc4 {[%emt 0:04:50]} 20. Qxc4 {[%emt 0:07:44]} Rxc4 {[%emt 0:00:12]} 21. Nce2 {[%emt 0:03:20]} (21. h3 $142) 21... Rxc2 {[%emt 0:00:39] Black is clearly winning.} 22. Nxc2 {[%emt 0:00:01]} Bb5 {[%emt 0:00:19]} ({Not} 22... Nxe4 23. Rb1 $19) (22... Ba4 23. Ned4 $19) 23. Ncd4 {[%emt 0:00:15]} (23. Rb1 $142 Bxe2 24. Rxb2) 23... Bd3 {[%emt 0:00:11]} 24. Nc3 {[%emt 0:01:01]} Bxf1 {[%emt 0:00:06]} 25. Kxf1 {[%emt 0:00:04] [#]} Nxe4 $1 {[%emt 0:00:06] Weighted Error Value: White=0.78/Black=0.04 (flawless) .  Mistake:       	White=4     	---        Inaccurate:     	White=2     	Black=1      OK:         	White=3     	Black=7      Best:        	---       	Black=4      Strong:       	---       	Black=1      Brilliant:      	---       	Black=1} 0-1